[Event "Paul Keres Memorial Festival 2022"]
[Site "Pärnu, Estonia Resort Hotel & Spa"]
[Date "2022.07.19"]
[Round "3.5"]
[White "Chukavin, Kirill"]
[Black "Protassov, Vlad"]
[Result "1-0"]
[TimeControl "60 min for 30 moves + 30 min until game end, from first move every move 30 sec time increment"]
[WhiteTitle "FM"]
[WhiteFideId "4503023"]
[BlackFideId "4507010"]
[WhiteElo "2418"]
[BlackElo "1824"]

1. e4 {[%clk 00:59:51]} {[%emt 00:01:07]} c6 {[%clk 01:00:50]} {[%emt
00:00:11]} 2. d3 {[%clk 00:59:33]} {[%emt 00:00:48]} d5 {[%clk 01:00:57]}
{[%emt 00:00:23]} 3. Nd2 {[%clk 00:59:54]} {[%emt 00:00:09]} e5 {[%clk
01:00:51]} {[%emt 00:00:36]} 4. Ngf3 {[%clk 00:59:37]} {[%emt 00:00:47]} Bd6
{[%clk 01:01:04]} {[%emt 00:00:17]} 5. g3 {[%clk 00:59:38]} {[%emt 00:00:29]}
Nf6 {[%clk 01:00:58]} {[%emt 00:00:36]} 6. Bg2 {[%clk 00:59:55]} {[%emt
00:00:13]} O-O {[%clk 01:00:58]} {[%emt 00:00:30]} 7. O-O {[%clk 01:00:18]}
{[%emt 00:00:07]} Nbd7 {[%clk 01:00:50]} {[%emt 00:00:38]} 8. Re1 {[%clk
00:55:52]} {[%emt 00:04:56]} Qc7 {[%clk 01:00:50]} {[%emt 00:00:30]} 9. c3
{[%clk 00:53:18]} {[%emt 00:03:04]} dxe4 {[%clk 01:00:48]} {[%emt 00:00:32]} 10.
dxe4 {[%clk 00:53:07]} {[%emt 00:00:40]} Rd8 {[%clk 00:57:04]} {[%emt
00:04:14]} 11. Qc2 {[%clk 00:52:42]} {[%emt 00:00:56]} a5 {[%clk 00:55:06]}
{[%emt 00:02:28]} 12. Nc4 {[%clk 00:47:48]} {[%emt 00:05:23]} Be7 {[%clk
00:53:43]} {[%emt 00:01:53]} 13. Bg5 {[%clk 00:42:16]} {[%emt 00:06:03]} b5
{[%clk 00:52:51]} {[%emt 00:01:22]} 14. Ne3 {[%clk 00:36:33]} {[%emt 00:06:12]}
g6 {[%clk 00:40:13]} {[%emt 00:13:08]} 15. a4 {[%clk 00:31:46]} {[%emt
00:05:17]} Bb7 {[%clk 00:28:39]} {[%emt 00:12:04]} 16. Ng4 {[%clk 00:23:39]}
{[%emt 00:08:37]} Kg7 {[%clk 00:21:43]} {[%emt 00:07:27]} 17. Rad1 {[%clk
00:20:40]} {[%emt 00:03:28]} h5 {[%clk 00:20:36]} {[%emt 00:01:37]} 18. Ne3
{[%clk 00:15:47]} {[%emt 00:05:23]} Nc5 {[%clk 00:19:56]} {[%emt 00:01:11]} 19.
axb5 {[%clk 00:09:38]} {[%emt 00:06:39]} Ncxe4 {[%clk 00:13:47]} {[%emt
00:06:39]} 20. b6 {[%clk 00:08:06]} {[%emt 00:02:02]} Qxb6 {[%clk 00:12:42]}
{[%emt 00:01:34]} 21. Nc4 {[%clk 00:07:06]} {[%emt 00:01:30]} Qc5 {[%clk
00:09:52]} {[%emt 00:03:21]} 22. Rxd8 {[%clk 00:05:21]} {[%emt 00:02:15]} Rxd8
{[%clk 00:08:09]} {[%emt 00:02:13]} 23. Rxe4 {[%clk 00:04:25]} {[%emt
00:01:25]} Nxe4 {[%clk 00:07:46]} {[%emt 00:00:52]} 24. Bxe7 {[%clk 00:04:45]}
{[%emt 00:00:11]} Qxe7 {[%clk 00:07:08]} {[%emt 00:01:08]} 25. Qxe4 {[%clk
00:05:09]} {[%emt 00:00:06]} Rd1+ {[%clk 00:07:18]} {[%emt 00:00:21]} 26. Bf1
{[%clk 00:04:51]} {[%emt 00:00:48]} c5 {[%emt 00:02:54]} 27. Qxe5+ {[%clk
00:04:34]} {[%emt 00:00:46]} Qxe5 {[%clk 00:05:17]} {[%emt 00:00:09]} 28. Nfxe5
{[%clk 00:04:52]} {[%emt 00:00:11]} f6 {[%clk 00:04:26]} {[%emt 00:01:21]} 29.
Nxa5 {[%clk 00:02:15]} {[%emt 00:03:07]} Be4 {[%clk 00:03:57]} {[%emt
00:01:00]} 30. Nec4 {[%clk 00:32:19]} {[%emt 00:00:25]} Bd3 {[%clk 00:32:34]}
{[%emt 00:01:53]} 31. Ne3 {[%clk 00:32:16]} {[%emt 00:00:33]} Rb1 {[%clk
00:32:32]} {[%emt 00:00:33]} 32. Nac4 {[%clk 00:31:50]} {[%emt 00:00:56]} Bxf1
{[%clk 00:31:33]} {[%emt 00:01:28]} 33. Nxf1 {[%clk 00:32:08]} {[%emt
00:00:11]} Kf7 {[%clk 00:31:57]} {[%emt 00:00:07]} 34. Kg2 {[%clk 00:31:16]}
{[%emt 00:01:21]} Ke6 {[%clk 00:32:19]} {[%emt 00:00:09]} 35. Nfe3 {[%clk
00:30:41]} {[%emt 00:01:05]} Rc1 {[%clk 00:30:48]} {[%emt 00:02:01]} 36. Nd2
{[%clk 00:29:32]} {[%emt 00:01:38]} Ra1 {[%clk 00:30:32]} {[%emt 00:00:46]} 37.
Nb3 {[%clk 00:29:06]} {[%emt 00:00:56]} 1-0

[Event "Paul Keres Memorial Festival 2022"]
[Site "Pärnu, Estonia Resort Hotel & Spa"]
[Date "2022.07.19"]
[Round "3.6"]
[White "Agrest, Simon"]
[Black "Olde, Margareth"]
[Result "0-1"]
[TimeControl "60 min for 30 moves + 30 min until game end, from first move every move 30 sec time increment"]
[BlackTitle "WIM"]
[BlackFideId "4503082"]
[WhiteElo "1802"]
[BlackElo "2235"]

1. e4 {[%clk 00:59:53]} {[%emt 00:01:06]} c5 {[%clk 01:00:52]} {[%emt
00:00:09]} 2. Nc3 {[%clk 01:00:05]} {[%emt 00:00:18]} Nc6 {[%clk 01:01:14]}
{[%emt 00:00:08]} 3. g3 {[%clk 01:00:05]} {[%emt 00:00:26]} g6 {[%clk
01:01:35]} {[%emt 00:00:13]} 4. Bg2 {[%clk 01:00:11]} {[%emt 00:00:22]} Bg7
{[%clk 01:01:57]} {[%emt 00:00:10]} 5. d3 {[%clk 01:00:29]} {[%emt 00:00:12]}
d6 {[%clk 01:02:06]} {[%emt 00:00:21]} 6. f4 {[%clk 01:00:26]} {[%emt
00:00:33]} e6 {[%clk 01:02:29]} {[%emt 00:00:08]} 7. Nf3 {[%clk 01:00:07]}
{[%emt 00:00:48]} Nge7 {[%clk 01:02:51]} {[%emt 00:00:09]} 8. O-O {[%clk
00:52:52]} {[%emt 00:07:45]} O-O {[%clk 01:03:06]} {[%emt 00:00:14]} 9. Be3
{[%clk 00:52:14]} {[%emt 00:01:09]} b6 {[%clk 01:03:25]} {[%emt 00:00:11]} 10.
h3 {[%clk 00:44:25]} {[%emt 00:08:17]} d5 {[%clk 01:02:45]} {[%emt 00:01:11]}
11. Bf2 {[%clk 00:42:10]} {[%emt 00:02:44]} Ba6 {[%clk 01:02:29]} {[%emt
00:00:46]} 12. e5 {[%clk 00:33:48]} {[%emt 00:08:52]} Qc7 {[%clk 00:59:50]}
{[%emt 00:03:09]} 13. Ne2 {[%clk 00:30:05]} {[%emt 00:04:13]} Rac8 {[%clk
00:56:58]} {[%emt 00:03:23]} 14. c3 {[%clk 00:28:01]} {[%emt 00:02:33]} Rfd8
{[%clk 00:51:58]} {[%emt 00:05:30]} 15. g4 {[%clk 00:26:07]} {[%emt 00:02:24]}
h6 {[%clk 00:48:49]} {[%emt 00:03:39]} 16. h4 {[%clk 00:23:13]} {[%emt
00:03:24]} b5 {[%clk 00:43:16]} {[%emt 00:06:03]} 17. Kh1 {[%clk 00:17:59]}
{[%emt 00:05:45]} d4 {[%clk 00:35:54]} {[%emt 00:07:52]} 18. cxd4 {[%clk
00:17:11]} {[%emt 00:01:18]} Nxd4 {[%clk 00:35:19]} {[%emt 00:01:05]} 19. Nfxd4
{[%clk 00:16:03]} {[%emt 00:01:38]} cxd4 {[%clk 00:35:44]} {[%emt 00:00:06]} 20.
Bxd4 {[%clk 00:15:24]} {[%emt 00:01:09]} Bb7 {[%clk 00:33:07]} {[%emt
00:03:07]} 21. Rc1 {[%clk 00:12:01]} {[%emt 00:03:53]} Bxg2+ {[%clk 00:33:18]}
{[%emt 00:00:20]} 22. Kxg2 {[%clk 00:12:23]} {[%emt 00:00:08]} Qb7+ {[%clk
00:33:40]} {[%emt 00:00:07]} 23. Kg3 {[%clk 00:11:42]} {[%emt 00:01:11]} Rxc1
{[%clk 00:33:05]} {[%emt 00:01:05]} 24. Qxc1 {[%clk 00:11:55]} {[%emt
00:00:18]} h5 {[%clk 00:26:36]} {[%emt 00:06:59]} 25. Rf3 {[%clk 00:08:28]}
{[%emt 00:03:57]} hxg4 {[%clk 00:26:12]} {[%emt 00:00:54]} 26. Kxg4 {[%clk
00:08:37]} {[%emt 00:00:21]} Nf5 {[%clk 00:24:12]} {[%emt 00:02:30]} 27. Bf2
{[%clk 00:07:57]} {[%emt 00:01:10]} f6 {[%clk 00:19:19]} {[%emt 00:05:24]} 28.
d4 {[%clk 00:05:43]} {[%emt 00:02:44]} Kh7 {[%clk 00:12:37]} {[%emt 00:07:12]}
29. Qc3 {[%clk 00:04:15]} {[%emt 00:01:58]} fxe5 {[%clk 00:10:20]} {[%emt
00:02:47]} 30. dxe5 {[%clk 00:33:03]} {[%emt 00:01:42]} b4 {[%clk 00:34:49]}
{[%emt 00:06:02]} 31. Qe1 {[%clk 00:22:44]} {[%emt 00:10:48]} Qe4 {[%clk
00:27:43]} {[%emt 00:07:34]} 32. Ng1 {[%clk 00:18:16]} {[%emt 00:05:00]} Qc4
{[%clk 00:23:20]} {[%emt 00:04:50]} 33. Nh3 {[%clk 00:12:23]} {[%emt 00:06:25]}
Bh6 {[%clk 00:23:06]} {[%emt 00:00:45]} 34. b3 {[%clk 00:09:49]} {[%emt
00:03:04]} Qb5 {[%clk 00:15:25]} {[%emt 00:08:11]} 35. Qc1 {[%clk 00:06:57]}
{[%emt 00:03:22]} Qxe5 {[%clk 00:08:46]} {[%emt 00:07:09]} 36. Ng5+ {[%clk
00:05:17]} {[%emt 00:02:10]} Bxg5 {[%clk 00:09:11]} {[%emt 00:00:05]} 37. hxg5
{[%clk 00:05:31]} {[%emt 00:00:16]} Qd5 {[%clk 00:08:21]} {[%emt 00:01:12]} 38.
Qa1 {[%clk 00:03:12]} {[%emt 00:02:58]} Ng7 {[%clk 00:07:45]} {[%emt 00:01:06]}
39. Qf6 {[%clk 00:01:57]} {[%emt 00:01:45]} Qd1 {[%clk 00:07:03]} {[%emt
00:01:10]} 40. Qe5 {[%clk 00:01:03]} {[%emt 00:01:20]} Rd2 {[%clk 00:04:33]}
{[%emt 00:03:05]} 41. Qe1 {[%clk 00:00:42]} {[%emt 00:00:51]} Qc2 {[%clk
00:03:51]} {[%emt 00:01:11]} 42. Qe3 {[%clk 00:00:32]} {[%emt 00:00:41]} Qf5+
{[%clk 00:03:00]} {[%emt 00:01:21]} 43. Kg3 {[%clk 00:00:46]} {[%emt 00:00:12]}
Rxa2 {[%clk 00:02:18]} {[%emt 00:01:15]} 44. Kg2 {[%clk 00:00:48]} {[%emt
00:00:24]} Nh5 {[%clk 00:02:22]} {[%emt 00:00:30]} 45. Kf1 {[%clk 00:00:33]}
{[%emt 00:00:45]} Ra1+ {[%clk 00:02:16]} {[%emt 00:00:37]} 46. Ke2 {[%clk
00:00:36]} {[%emt 00:00:26]} Qb5+ {[%clk 00:01:03]} {[%emt 00:01:44]} 47. Qd3
{[%clk 00:00:45]} {[%emt 00:00:22]} Ra2+ {[%clk 00:00:44]} {[%emt 00:00:48]} 48.
Ke3 {[%clk 00:00:55]} {[%emt 00:00:19]} Qc5+ {[%clk 00:00:37]} {[%emt
00:00:37]} 49. Qd4 {[%clk 00:01:06]} {[%emt 00:00:19]} Qc1+ {[%clk 00:00:41]}
{[%emt 00:00:27]} 50. Ke4 {[%clk 00:01:06]} {[%emt 00:00:23]} Re2+ {[%clk
00:00:40]} {[%emt 00:00:37]} 51. Re3 {[%clk 00:00:38]} {[%emt 00:00:58]} Qc6+
{[%clk 00:00:41]} {[%emt 00:00:29]} 52. Ke5 {[%clk 00:00:45]} {[%emt 00:00:22]}
Qc7+ {[%clk 00:00:46]} {[%emt 00:00:25]} 53. Qd6 {[%clk 00:00:35]} {[%emt
00:00:40]} Qxd6+ {[%clk 00:01:06]} {[%emt 00:00:10]} 54. Kxd6 {[%clk 00:00:59]}
{[%emt 00:00:07]} Rxf2 {[%clk 00:01:33]} {[%emt 00:00:03]} 55. Rxe6 {[%clk
00:01:01]} {[%emt 00:00:28]} Rxf4 {[%clk 00:01:48]} {[%emt 00:00:14]} 56. Re7+
{[%clk 00:01:21]} {[%emt 00:00:09]} Ng7 {[%clk 00:02:12]} {[%emt 00:00:07]} 57.
Rxa7 {[%clk 00:01:38]} {[%emt 00:00:13]} Rf3 {[%clk 00:02:32]} {[%emt
00:00:09]} 58. Rb7 {[%clk 00:00:59]} {[%emt 00:01:10]} Rxb3 {[%clk 00:02:51]}
{[%emt 00:00:11]} 59. Ke5 {[%clk 00:01:14]} {[%emt 00:00:13]} Rf3 {[%clk
00:02:26]} {[%emt 00:00:56]} 60. Rxb4 {[%clk 00:01:32]} {[%emt 00:00:13]} Rf5+
{[%clk 00:02:52]} {[%emt 00:00:03]} 61. Kd6 {[%clk 00:01:35]} {[%emt 00:00:27]}
Rxg5 {[%clk 00:03:04]} {[%emt 00:00:19]} 62. Ke7 {[%clk 00:01:40]} {[%emt
00:00:24]} Re5+ {[%clk 00:03:12]} {[%emt 00:00:22]} 63. Kf6 {[%clk 00:01:48]}
{[%emt 00:00:22]} Rf5+ {[%clk 00:03:38]} {[%emt 00:00:04]} 64. Ke7 {[%clk
00:02:09]} {[%emt 00:00:09]} g5 {[%clk 00:03:59]} {[%emt 00:00:10]} 65. Rb6
{[%clk 00:02:19]} {[%emt 00:00:20]} g4 {[%clk 00:03:51]} {[%emt 00:00:39]} 66.
Rb4 {[%clk 00:01:56]} {[%emt 00:00:52]} Rg5 {[%clk 00:04:04]} {[%emt 00:00:16]}
67. Kf6 {[%clk 00:02:11]} {[%emt 00:00:16]} Kh6 {[%clk 00:04:23]} {[%emt
00:00:12]} 68. Rb8 {[%clk 00:01:52]} {[%emt 00:00:49]} Rf5+ {[%clk 00:04:46]}
{[%emt 00:00:07]} 69. Ke7 {[%clk 00:02:05]} {[%emt 00:00:16]} Kg6 {[%clk
00:04:58]} {[%emt 00:00:17]} 70. Rb4 {[%clk 00:01:43]} {[%emt 00:00:53]} Re5+
{[%clk 00:04:39]} {[%emt 00:00:48]} 71. Kf8 {[%clk 00:01:34]} {[%emt 00:00:39]}
Re8# {[%clk 00:05:02]} {[%emt 00:00:06]} 0-1

[Event "Paul Keres Memorial Festival 2022"]
[Site "Pärnu, Estonia Resort Hotel & Spa"]
[Date "2022.07.19"]
[Round "3.7"]
[White "Rezniks, Roberts"]
[Black "Õim, Mikk Kaarel"]
[Result "1-0"]
[TimeControl "60 min for 30 moves + 30 min until game end, from first move every move 30 sec time increment"]
[WhiteFideId "11624884"]
[BlackFideId "4514815"]
[WhiteElo "1648"]
[BlackElo "1297"]

1. e4 {[%clk 01:00:56]} {[%emt 00:00:04]} e5 {[%clk 01:00:48]} {[%emt
00:00:12]} 2. Nf3 {[%clk 01:01:22]} {[%emt 00:00:04]} Nc6 {[%clk 01:00:59]}
{[%emt 00:00:19]} 3. d4 {[%clk 01:01:50]} {[%emt 00:00:02]} exd4 {[%clk
01:01:08]} {[%emt 00:00:20]} 4. Nxd4 {[%clk 01:02:19]} {[%emt 00:00:02]} Nf6
{[%clk 01:00:29]} {[%emt 00:01:10]} 5. Nxc6 {[%clk 01:02:46]} {[%emt 00:00:02]}
bxc6 {[%clk 01:00:46]} {[%emt 00:00:12]} 6. e5 {[%clk 01:03:15]} {[%emt
00:00:01]} Qe7 {[%clk 01:00:53]} {[%emt 00:00:24]} 7. Qe2 {[%clk 01:03:43]}
{[%emt 00:00:02]} Nd5 {[%clk 01:00:57]} {[%emt 00:00:25]} 8. c4 {[%clk
01:04:11]} {[%emt 00:00:03]} Ba6 {[%clk 01:00:56]} {[%emt 00:00:30]} 9. h4
{[%clk 01:04:38]} {[%emt 00:00:03]} h6 {[%clk 01:00:19]} {[%emt 00:01:07]} 10.
Rh3 {[%clk 01:04:25]} {[%emt 00:00:43]} Nb6 {[%clk 00:57:29]} {[%emt 00:03:20]}
11. Nd2 {[%clk 01:04:28]} {[%emt 00:00:27]} Qe6 {[%clk 00:47:45]} {[%emt
00:10:14]} 12. a4 {[%clk 00:59:52]} {[%emt 00:05:06]} Bb4 {[%clk 00:42:23]}
{[%emt 00:05:52]} 13. b3 {[%clk 00:58:31]} {[%emt 00:01:51]} O-O {[%clk
00:34:31]} {[%emt 00:08:21]} 14. a5 {[%clk 00:56:52]} {[%emt 00:02:10]} Nd5
{[%clk 00:26:12]} {[%emt 00:08:49]} 15. cxd5 {[%clk 00:50:39]} {[%emt
00:06:44]} Qxh3 {[%clk 00:26:26]} {[%emt 00:00:17]} 16. gxh3 {[%clk 00:51:07]}
{[%emt 00:00:01]} Bxe2 {[%clk 00:26:39]} {[%emt 00:00:16]} 17. Bxe2 {[%clk
00:51:17]} {[%emt 00:00:21]} cxd5 {[%clk 00:24:56]} {[%emt 00:02:13]} 18. Bb2
{[%clk 00:49:57]} {[%emt 00:01:49]} Rab8 {[%clk 00:20:44]} {[%emt 00:04:43]} 19.
Bg4 {[%clk 00:46:48]} {[%emt 00:03:39]} d6 {[%clk 00:17:07]} {[%emt 00:04:07]}
20. exd6 {[%clk 00:46:58]} {[%emt 00:00:20]} Bxd6 {[%clk 00:17:08]} {[%emt
00:00:30]} 21. O-O-O {[%clk 00:46:29]} {[%emt 00:00:59]} Bb4 {[%clk 00:13:28]}
{[%emt 00:04:11]} 22. a6 {[%clk 00:43:38]} {[%emt 00:03:20]} Rb6 {[%clk
00:10:38]} {[%emt 00:03:20]} 23. Bf3 {[%clk 00:43:54]} {[%emt 00:00:12]} c6
{[%clk 00:10:00]} {[%emt 00:01:10]} 24. Be2 {[%clk 00:43:03]} {[%emt 00:01:21]}
Bc5 {[%clk 00:05:58]} {[%emt 00:04:33]} 25. Rg1 {[%clk 00:41:59]} {[%emt
00:01:33]} f6 {[%clk 00:05:28]} {[%emt 00:01:00]} 26. Rg2 {[%clk 00:42:20]}
{[%emt 00:00:08]} Bd6 {[%clk 00:03:01]} {[%emt 00:02:57]} 27. Kc2 {[%clk
00:42:15]} {[%emt 00:00:35]} Be5 {[%clk 00:01:25]} {[%emt 00:02:07]} 28. Ba3
{[%clk 00:42:38]} {[%emt 00:00:06]} Rf7 {[%clk 00:01:50]} {[%emt 00:00:06]} 29.
Bc5 {[%clk 00:41:53]} {[%emt 00:01:15]} Rb8 {[%clk 00:02:07]} {[%emt 00:00:13]}
30. Bh5 {[%clk 01:10:31]} {[%emt 00:01:51]} Rc7 {[%clk 00:32:23]} {[%emt
00:00:14]} 31. Nf3 {[%clk 01:09:04]} {[%emt 00:01:56]} Rd8 {[%clk 00:29:27]}
{[%emt 00:03:27]} 32. Rg6 {[%clk 01:03:52]} {[%emt 00:05:38]} Bd6 {[%clk
00:21:14]} {[%emt 00:08:47]} 33. Bd4 {[%clk 01:02:20]} {[%emt 00:02:01]} Kh7
{[%clk 00:20:31]} {[%emt 00:01:13]} 34. Bc3 {[%clk 01:02:14]} {[%emt 00:00:35]}
Bc5 {[%clk 00:18:01]} {[%emt 00:03:02]} 35. Rg2 {[%clk 01:00:07]} {[%emt
00:02:35]} d4 {[%clk 00:13:03]} {[%emt 00:05:30]} 36. Bg6+ {[%clk 01:00:14]}
{[%emt 00:00:23]} Kh8 {[%clk 00:13:18]} {[%emt 00:00:15]} 37. Bd2 {[%clk
00:59:49]} {[%emt 00:00:53]} Rd5 {[%clk 00:08:19]} {[%emt 00:05:31]} 38. h5
{[%clk 00:59:28]} {[%emt 00:00:50]} Kg8 {[%clk 00:06:00]} {[%emt 00:02:49]} 39.
Nh4 {[%clk 00:59:05]} {[%emt 00:00:53]} d3+ {[%clk 00:05:23]} {[%emt 00:01:07]}
40. Bxd3 {[%clk 00:56:30]} {[%emt 00:03:06]} Rcd7 {[%clk 00:01:59]} {[%emt
00:03:54]} 41. Bc4 {[%clk 00:56:39]} {[%emt 00:00:20]} 1-0

[Event "Paul Keres Memorial Festival 2022"]
[Site "Pärnu, Estonia Resort Hotel & Spa"]
[Date "2022.07.19"]
[Round "3.8"]
[White "Golubovskis, Maksims"]
[Black "Haapsal, Maria Joanna"]
[Result "1-0"]
[TimeControl "60 min for 30 moves + 30 min until game end, from first move every move 30 sec time increment"]
[WhiteTitle "FM"]
[WhiteFideId "11608528"]
[BlackFideId "4512286"]
[WhiteElo "2219"]
[BlackElo "1375"]

1. e4 {[%clk 01:00:58]} c5 {[%clk 01:00:53]} {[%emt 00:00:07]} 2. Nf3 {[%clk
01:00:42]} {[%emt 00:00:46]} e6 {[%clk 01:01:17]} {[%emt 00:00:07]} 3. d4
{[%clk 01:00:47]} {[%emt 00:00:24]} cxd4 {[%clk 01:01:38]} {[%emt 00:00:09]} 4.
Nxd4 {[%clk 01:01:12]} {[%emt 00:00:05]} Nc6 {[%clk 01:01:46]} {[%emt
00:00:22]} 5. Nc3 {[%clk 01:01:32]} {[%emt 00:00:10]} Nf6 {[%clk 01:02:01]}
{[%emt 00:00:16]} 6. Ndb5 {[%clk 01:00:02]} {[%emt 00:01:59]} d6 {[%clk
01:02:13]} {[%emt 00:00:18]} 7. Bf4 {[%clk 01:00:27]} {[%emt 00:00:06]} e5
{[%clk 01:02:37]} {[%emt 00:00:07]} 8. Bg5 {[%clk 01:00:52]} {[%emt 00:00:04]}
a6 {[%clk 01:03:02]} {[%emt 00:00:06]} 9. Na3 {[%clk 01:01:18]} {[%emt
00:00:03]} b5 {[%clk 01:03:27]} {[%emt 00:00:06]} 10. Nd5 {[%clk 01:01:42]}
{[%emt 00:00:05]} Be7 {[%clk 01:03:46]} {[%emt 00:00:11]} 11. Bxf6 {[%clk
01:02:04]} {[%emt 00:00:08]} Bxf6 {[%clk 01:03:49]} {[%emt 00:00:28]} 12. c3
{[%clk 01:02:24]} {[%emt 00:00:10]} Bg5 {[%clk 01:03:58]} {[%emt 00:00:21]} 13.
Nc2 {[%clk 01:02:36]} {[%emt 00:00:16]} O-O {[%clk 01:03:29]} {[%emt 00:01:01]}
14. a4 {[%clk 01:02:14]} {[%emt 00:00:53]} bxa4 {[%clk 01:03:48]} {[%emt
00:00:11]} 15. Rxa4 {[%clk 01:02:28]} {[%emt 00:00:15]} a5 {[%clk 01:04:03]}
{[%emt 00:00:15]} 16. Bc4 {[%clk 01:00:52]} {[%emt 00:02:05]} Rb8 {[%clk
01:04:04]} {[%emt 00:00:30]} 17. b3 {[%clk 00:59:33]} {[%emt 00:01:49]} Be6
{[%clk 01:01:36]} {[%emt 00:02:57]} 18. O-O {[%clk 00:56:40]} {[%emt 00:03:23]}
Kh8 {[%clk 01:01:38]} {[%emt 00:00:28]} 19. Qe2 {[%clk 00:53:51]} {[%emt
00:03:18]} g6 {[%clk 01:00:34]} {[%emt 00:01:34]} 20. b4 {[%clk 00:43:53]}
{[%emt 00:10:29]} axb4 {[%clk 00:59:49]} {[%emt 00:01:15]} 21. cxb4 {[%clk
00:43:41]} {[%emt 00:00:42]} f5 {[%clk 00:56:54]} {[%emt 00:03:24]} 22. exf5
{[%clk 00:43:03]} {[%emt 00:01:07]} gxf5 {[%clk 00:55:36]} {[%emt 00:01:49]} 23.
f4 {[%clk 00:37:04]} {[%emt 00:06:30]} Bf6 {[%clk 00:49:10]} {[%emt 00:06:56]}
24. Nxf6 {[%clk 00:35:04]} {[%emt 00:02:29]} Qxf6 {[%clk 00:49:24]} {[%emt
00:00:17]} 25. b5 {[%clk 00:26:45]} {[%emt 00:08:50]} Ne7 {[%clk 00:44:28]}
{[%emt 00:05:25]} 26. fxe5 {[%clk 00:24:24]} {[%emt 00:02:51]} dxe5 {[%clk
00:43:11]} {[%emt 00:01:44]} 27. Ra6 {[%clk 00:24:02]} {[%emt 00:00:56]} Bxc4
{[%clk 00:43:13]} {[%emt 00:00:27]} 28. Qxc4 {[%clk 00:24:28]} {[%emt
00:00:05]} Rb6 {[%clk 00:41:47]} {[%emt 00:01:57]} 29. Qc7 {[%clk 00:16:13]}
{[%emt 00:08:45]} Nc8 {[%clk 00:36:12]} {[%emt 00:06:04]} 30. Ra8 {[%clk
00:34:21]} {[%emt 00:12:24]} Qe6 {[%clk 01:00:12]} {[%emt 00:06:29]} 31. Rd1
{[%clk 00:33:09]} {[%emt 00:01:42]} Qe8 {[%clk 00:55:38]} {[%emt 00:05:04]} 32.
Rd7 {[%clk 00:29:23]} {[%emt 00:04:16]} Rh6 {[%clk 00:55:17]} {[%emt 00:00:50]}
33. b6 {[%clk 00:27:47]} {[%emt 00:02:07]} Qh5 {[%clk 00:50:40]} {[%emt
00:05:06]} 34. Qxe5+ {[%clk 00:27:58]} {[%emt 00:00:19]} 1-0